bitfinex-derivatives/quotes_BNBF0:USTF0_20260114
["timestamp","ask_amount","ask_price","bid_price","bid_amount"]
[1768395621694,0.76814853,934.63,933.78,1.587304]
[1768395621893,0.76814853,934.62,933.78,1.587304]
[1768395622094,0.76814853,934.61,933.78,1.587304]
[1768395622296,0.76814853,934.6,933.78,1.587304]
[1768395622496,0.76814853,934.59,933.78,1.587304]
[1768395622693,0.76814853,934.58,933.78,1.587304]
[1768395622896,0.76814853,934.57,933.78,1.587304]
[1768395623096,0.76814853,934.56,933.78,1.587304]
[1768395623296,0.76814853,934.55,933.78,1.587304]
[1768395623495,0.76814853,934.54,933.57,0.1861769]
[1768395623694,0.76814853,934.53,933.57,0.1861769]
[1768395623897,0.76814853,934.52,933.57,0.1861769]
[1768395624197,0.76814853,934.51,933.57,0.1861769]
[1768395624397,0.76814853,934.5,933.57,0.1861769]
[1768395624594,0.76814853,934.49,933.57,0.1861769]
[1768395624798,0.76814853,934.48,933.57,0.1861769]
[1768395624996,0.76814853,934.47,933.57,0.1861769]
[1768395625295,0.76814853,934.46,933.57,0.1861769]
[1768395625497,0.76814853,934.45,933.57,0.1861769]
[1768395625693,0.76814853,934.44,933.57,0.1861769]
[1768395625894,0.76814853,934.43,933.57,0.1861769]
[1768395626098,0.76814853,934.42,933.57,0.1861769]
[1768395626297,0.76814853,934.41,933.57,0.1861769]
[1768395626599,0.76814853,934.4,933.57,0.1861769]
[1768395626798,0.76814853,934.39,933.57,0.1861769]
[1768395626996,0.76814853,934.38,933.57,0.1861769]
[1768395627200,0.76814853,934.37,933.57,0.1861769]
[1768395627500,0.76814853,934.36,933.57,0.1861769]
[1768395627696,0.76814853,934.35,933.57,0.1861769]
[1768395627897,0.76814853,934.34,933.57,0.1861769]
[1768395628102,0.76814853,934.33,933.57,0.1861769]
[1768395628302,0.76814853,934.32,933.57,0.1861769]
[1768395628501,0.76814853,934.31,933.57,0.1861769]
[1768395628798,0.76814853,934.3,933.57,0.1861769]
[1768395628997,0.76814853,934.29,933.57,0.1861769]
[1768395629199,0.76814853,934.28,933.57,0.1861769]
[1768395629398,0.76814853,934.27,933.57,0.1861769]
[1768395629601,1.028,935.02,933.57,0.1861769]
[1768395629802,0.76810222,935.01,933.57,0.1861769]
[1768395629999,0.76810222,935.0,933.57,0.1861769]
[1768395630203,0.76810222,934.99,933.57,0.1861769]
[1768395630403,0.76810222,934.98,933.57,0.1861769]
[1768395630604,0.76810222,934.97,933.57,0.1861769]
[1768395630806,0.76810222,934.96,933.57,0.1861769]
[1768395630998,0.76810222,934.95,933.57,0.1861769]
[1768395631200,0.76810222,934.94,933.57,0.1861769]
[1768395631400,0.76810222,934.93,933.57,0.1861769]
[1768395631604,0.76810222,934.92,933.57,0.1861769]
[1768395631804,0.76810222,934.91,933.57,0.1861769]
[1768395632106,0.76810222,934.9,933.57,0.1861769]
[1768395632303,0.76810222,934.89,933.57,0.1861769]
[1768395632500,0.76810222,934.88,933.57,0.1861769]
[1768395632705,0.76810222,934.87,933.57,0.1861769]
[1768395632906,0.76810222,934.86,933.57,0.1861769]
[1768395633105,0.76810222,934.85,933.57,0.1861769]
[1768395633305,0.76810222,934.84,933.57,0.1861769]
[1768395633506,0.76810222,934.83,933.57,0.1861769]
[1768395633708,0.76810222,934.82,933.57,0.1861769]
[1768395633907,0.76810222,934.81,933.57,0.1861769]
[1768395634207,1.028,935.02,933.57,0.1861769]
[1768395634208,0.76810222,934.8,933.57,0.1861769]
[1768395634408,0.76810222,934.79,933.57,0.1861769]
[1768395634610,0.76810222,934.78,933.57,0.1861769]
[1768395634804,0.76810222,934.77,933.57,0.1861769]
[1768395635008,0.76810222,934.76,933.57,0.1861769]
[1768395635203,0.76810222,934.75,933.57,0.1861769]
[1768395635509,0.76810222,934.74,933.57,0.1861769]
[1768395635706,0.76810222,934.73,933.57,0.1861769]
[1768395635903,0.76810222,934.72,933.57,0.1861769]
[1768395636108,0.76810222,934.71,933.57,0.1861769]
[1768395636309,0.76810222,934.7,933.57,0.1861769]
[1768395636509,0.76810222,934.69,933.57,0.1861769]
[1768395636703,0.76810222,934.68,933.57,0.1861769]
[1768395636908,0.76810222,934.67,933.57,0.1861769]
[1768395637108,0.76810222,934.66,933.57,0.1861769]
[1768395637405,0.76810222,934.65,933.57,0.1861769]
[1768395637610,0.76810222,934.64,933.57,0.1861769]
[1768395637810,0.76810222,934.63,933.57,0.1861769]
[1768395638108,0.76810222,934.62,933.57,0.1861769]
[1768395638309,0.76810222,934.61,933.57,0.1861769]
[1768395638609,1.028,935.02,933.57,0.1861769]
[1768395638610,0.76810222,934.6,933.57,0.1861769]
[1768395638805,0.76810222,934.59,933.57,0.1861769]
[1768395639007,0.76810222,934.58,933.57,0.1861769]
[1768395639215,0.76810222,934.57,933.57,0.1861769]
[1768395639511,0.76810222,934.56,933.57,0.1861769]
[1768395639710,0.76810222,934.55,933.57,0.1861769]
[1768395639912,0.76810222,934.54,933.57,0.1861769]
[1768395640211,0.76810222,934.53,933.57,0.1861769]
[1768395640409,0.76810222,934.52,933.57,0.1861769]
[1768395640611,0.76810222,934.51,933.57,0.1861769]
[1768395640808,0.76810222,934.5,933.57,0.1861769]
[1768395641009,0.76810222,934.49,933.57,0.1861769]
[1768395641212,0.76810222,934.48,933.57,0.1861769]
[1768395641508,0.76810222,934.47,933.57,0.1861769]
[1768395641707,0.76810222,934.46,933.57,0.1861769]
[1768395641908,0.76810222,934.45,933.57,0.1861769]
[1768395642112,0.76810222,934.44,933.57,0.1861769]
[1768395642313,0.76810222,934.43,933.57,0.1861769]
[1768395642608,0.76810222,934.42,933.57,0.1861769]
[1768395642812,0.76810222,934.41,933.57,0.1861769]
[1768395643012,0.76810222,934.4,933.57,0.1861769]
[1768395643213,0.76810222,934.39,933.57,0.1861769]
[1768395643510,0.76810222,934.38,933.57,0.1861769]
[1768395643710,0.76810222,934.37,933.57,0.1861769]
[1768395643911,0.76810222,934.36,933.57,0.1861769]
[1768395644211,0.76810222,934.35,933.57,0.1861769]
[1768395644410,0.76810222,934.34,933.57,0.1861769]
[1768395644611,0.76810222,934.33,933.57,0.1861769]
[1768395644810,0.76810222,934.32,933.57,0.1861769]
[1768395645011,0.76810222,934.31,933.57,0.1861769]
[1768395645212,0.979,934.4,933.57,0.1861769]
[1768395645414,0.76853072,934.39,933.57,0.1861769]
[1768395645713,0.76853072,934.38,933.57,0.1861769]
[1768395645914,0.76853072,934.37,933.57,0.1861769]
[1768395646117,0.76853072,934.36,933.57,0.1861769]
[1768395646316,0.76853072,934.35,933.57,0.1861769]
[1768395646515,0.76853072,934.34,933.57,0.1861769]
[1768395646718,0.76853072,934.33,933.57,0.1861769]
[1768395646919,0.76853072,934.32,933.57,0.1861769]
[1768395647215,0.76853072,934.31,933.57,0.1861769]
[1768395647520,0.979,934.4,933.57,0.1861769]
[1768395647716,0.76852088,934.39,933.57,0.1861769]
[1768395647919,0.76852088,934.38,933.57,0.1861769]
[1768395648118,0.76852088,934.37,933.57,0.1861769]
[1768395648319,0.76852088,934.36,933.57,0.1861769]
[1768395648520,0.76852088,934.35,933.57,0.1861769]
[1768395648719,0.76852088,934.34,933.57,0.1861769]
[1768395648920,0.76852088,934.33,933.57,0.1861769]
[1768395649116,0.76852088,934.32,933.57,0.1861769]
[1768395649319,0.76852088,934.31,933.57,0.1861769]
[1768395649518,0.979,934.4,933.57,0.1861769]
[1768395649714,0.76851531,934.39,933.57,0.1861769]
[1768395649920,0.76851531,934.38,933.57,0.1861769]
[1768395650115,0.76851531,934.37,933.57,0.1861769]
[1768395650318,0.76851531,934.36,933.57,0.1861769]
[1768395650520,0.76851531,934.35,933.57,0.1861769]
[1768395650718,0.76851531,934.34,933.57,0.1861769]
[1768395650920,0.76851531,934.33,933.57,0.1861769]
[1768395651120,0.76851531,934.32,933.57,0.1861769]
[1768395651320,0.76851531,934.31,933.57,0.1861769]
[1768395651521,0.979,934.4,933.57,0.1861769]
[1768395651820,0.76851485,934.39,933.57,0.1861769]
[1768395652016,0.76851485,934.38,933.57,0.1861769]
[1768395652216,0.76851485,934.37,933.57,0.1861769]
[1768395652420,0.76851485,934.36,933.57,0.1861769]
[1768395652720,0.76851485,934.35,933.57,0.1861769]
[1768395653020,0.76851485,934.34,933.57,0.1861769]
[1768395653220,0.76851485,934.33,933.57,0.1861769]
[1768395653420,0.76851485,934.32,933.79,1.5990641]
[1768395653622,0.76851485,934.31,933.79,1.5990641]
[1768395653818,0.979,934.4,933.79,1.5990641]
[1768395654023,0.76851898,934.39,933.79,1.5990641]
[1768395654220,0.76851898,934.38,933.79,1.5990641]
[1768395654421,0.76851898,934.37,933.79,1.5990641]
[1768395654618,0.76851898,934.36,933.79,1.5990641]
[1768395654821,0.76851898,934.35,933.79,1.5990641]
[1768395655018,0.76851898,934.34,933.79,1.5990641]
[1768395655219,0.76851898,934.33,933.79,1.5990641]
[1768395655420,0.76851898,934.32,933.79,1.5990641]
[1768395655619,0.76851898,934.31,933.79,1.5990641]
[1768395655819,0.979,934.4,933.79,1.5990641]
[1768395656020,0.76852783,934.39,933.79,1.5990641]
[1768395656220,0.76852783,934.38,933.79,1.5990641]
[1768395656420,0.76852783,934.37,933.79,1.5990641]
[1768395656618,0.76852783,934.36,933.79,1.5990641]
[1768395656821,0.76852783,934.35,933.79,1.5990641]
[1768395657019,0.76852783,934.34,933.79,1.5990641]
[1768395657321,0.979,934.4,933.79,1.5990641]
[1768395657322,0.76852783,934.33,933.79,1.5990641]
[1768395657519,0.76852783,934.32,933.79,1.5990641]
[1768395657721,0.76852783,934.31,933.79,1.5990641]
[1768395657918,0.979,934.4,933.79,1.5990641]
[1768395658120,0.76854169,934.39,933.79,1.5990641]
[1768395658322,0.76854169,934.38,933.79,1.5990641]
[1768395658524,0.76854169,934.37,933.79,1.5990641]
[1768395658724,0.76854169,934.36,933.79,1.5990641]
[1768395659020,0.76854169,934.36,933.57,0.1861769]
[1768395659021,0.76854169,934.35,933.81,1.5990641]
[1768395659220,0.76854169,934.34,933.81,1.5990641]
[1768395659421,0.76854169,934.33,933.81,1.5990641]
[1768395659725,0.979,934.4,933.81,1.5990641]
[1768395660024,0.76854082,934.39,933.81,1.5990641]
[1768395660220,0.76854082,934.38,933.81,1.5990641]
[1768395660419,0.76854082,934.37,933.81,1.5990641]
[1768395660624,0.76854082,934.36,933.81,1.5990641]
[1768395660824,0.76854082,934.35,933.81,1.5990641]
[1768395661021,0.76854082,934.34,933.81,1.5990641]
[1768395661226,0.76854082,934.33,933.81,1.5990641]
[1768395661426,0.7686141,934.32,933.72,1.5990641]
[1768395661624,0.7686141,934.31,933.72,1.5990641]
[1768395661828,0.7686141,934.3,933.72,1.5990641]
[1768395662124,0.7686141,934.29,933.62,1.5990641]
[1768395662328,0.7686141,934.28,933.62,1.5990641]
[1768395662524,0.7686141,934.27,933.62,1.5990641]
[1768395662825,0.7686141,934.26,933.62,1.5990641]
[1768395663021,0.7686141,934.25,933.61,1.5990641]
[1768395663227,0.7686141,934.24,933.57,1.785241]
[1768395663525,0.7686141,934.23,933.57,0.1861769]
[1768395663724,0.7686141,934.22,933.57,0.1861769]
[1768395664026,0.7686141,934.21,933.57,0.1861769]
[1768395664223,0.7686141,934.2,933.57,0.1861769]
[1768395664428,0.7686141,934.19,933.57,0.1861769]
[1768395664629,0.7686141,934.18,933.57,0.1861769]
[1768395664828,0.7686141,934.17,933.57,0.1861769]
[1768395665125,0.7686141,934.16,933.57,0.1861769]
[1768395665327,0.7686141,934.15,933.57,0.1861769]
[1768395665527,0.7686141,934.14,933.57,0.1861769]
[1768395665725,0.7686141,934.13,933.57,0.1861769]
[1768395665925,0.979,934.4,933.57,0.1861769]
[1768395666124,0.76767743,934.39,933.57,0.1861769]
[1768395666326,0.76767743,934.38,933.57,0.1861769]
[1768395666530,0.76767743,934.37,933.57,0.1861769]
[1768395666727,0.76767743,934.36,933.57,0.1861769]
[1768395667027,0.76767743,934.35,933.57,0.1861769]
[1768395667226,0.76767743,934.34,933.41,1.5990641]
[1768395667427,0.76767743,934.33,933.42,0.18624765]
[1768395667628,0.76767743,934.32,933.42,0.18624765]
[1768395667831,0.76767743,934.31,933.42,0.18624765]
[1768395668029,0.76767743,934.3,933.42,0.18624765]
[1768395668232,0.76767743,934.29,933.42,0.18624765]
[1768395668532,0.76767743,934.28,933.42,0.18624765]
[1768395668829,0.76767743,934.27,933.42,0.18624765]
[1768395669031,0.76767743,934.26,933.42,0.18624765]
[1768395669229,0.76767743,934.25,933.42,0.18624765]
[1768395669426,0.76767743,934.24,933.42,0.18624765]
[1768395669631,0.76767743,934.23,933.42,0.18624765]
[1768395669831,0.76767743,934.22,933.42,0.18624765]
[1768395670029,0.76767743,934.21,933.42,0.18624765]
[1768395670230,0.76767743,934.2,933.42,0.18624765]
[1768395670433,0.76767743,934.19,933.42,0.18624765]
[1768395670631,0.76767743,934.18,933.42,0.18624765]
[1768395670829,0.76767743,934.17,933.42,0.18624765]
[1768395671031,0.76767743,934.16,933.42,0.18624765]
[1768395671235,0.76767743,934.15,933.42,0.18624765]
[1768395671536,0.76767743,934.14,933.42,0.18624765]
[1768395671732,0.76767743,934.13,933.42,0.18624765]
[1768395671932,0.76767743,934.12,933.42,0.18624765]
[1768395672136,0.76767743,934.11,933.42,0.18624765]
[1768395672432,0.76767743,934.1,933.12,1.5990641]
[1768395672636,0.979,934.4,933.12,1.5990641]
[1768395672637,0.76767743,934.09,933.31,0.18628254]
[1768395672937,0.76767743,934.08,933.31,0.18628254]
[1768395673136,0.76767743,934.07,933.31,0.18628254]
[1768395673433,0.76767743,934.06,933.31,0.18628254]
[1768395673633,0.76767743,934.05,933.31,0.18628254]
[1768395673933,0.76767743,934.04,933.31,0.18628254]
[1768395674136,0.76767743,934.03,933.31,0.18628254]
[1768395674432,0.76767743,934.02,933.31,0.18628254]
[1768395674636,0.76767743,934.01,933.31,0.18628254]
[1768395674836,0.76767743,934.0,933.31,0.18628254]
[1768395675036,0.76767743,933.99,933.31,0.18628254]
[1768395675334,0.979,934.4,933.31,0.18628254]
[1768395675533,0.76420841,934.39,933.31,0.18628254]
[1768395675837,0.76420841,934.38,933.31,0.18628254]
[1768395676134,0.76420841,934.37,933.31,0.18628254]
[1768395676432,0.76420841,934.36,933.31,0.18628254]
[1768395676636,0.76420841,934.35,933.31,0.18628254]
[1768395676937,0.76420841,934.34,933.31,0.18628254]
[1768395677134,0.76420841,934.33,933.31,0.18628254]
[1768395677334,0.76420841,934.32,933.31,0.18628254]
[1768395677531,0.76420841,934.31,933.31,0.18628254]
[1768395677736,0.76420841,934.3,933.31,0.18628254]
[1768395677936,0.76420841,934.29,933.31,0.18628254]
[1768395678132,0.76420841,934.28,933.31,0.18628254]
[1768395678333,0.76420841,934.27,933.31,0.18628254]
[1768395678538,0.76420841,934.26,933.31,0.18628254]
[1768395678737,0.76420841,934.25,933.31,0.18628254]
[1768395678936,0.76420841,934.24,933.31,0.18628254]
[1768395679140,0.76420841,934.23,933.31,0.18628254]
[1768395679339,0.76420841,934.22,933.31,0.18628254]
[1768395679539,0.76420841,934.21,933.31,0.18628254]
[1768395679739,0.76420841,934.2,933.31,0.18628254]
[1768395679934,0.76420841,934.19,933.31,0.18628254]
[1768395680136,0.76420841,934.18,933.31,0.18628254]
[1768395680340,0.76420841,934.17,932.89,1.5990641]
[1768395680540,0.76420841,934.16,933.17,0.18631046]
[1768395680841,0.76420841,934.15,933.17,0.18631046]
[1768395681035,0.76420841,934.14,933.17,0.18631046]
[1768395681234,0.76420841,934.13,933.17,0.18631046]
[1768395681434,0.76420841,934.12,933.17,0.18631046]
[1768395681636,0.76420841,934.11,933.17,0.18631046]
[1768395681835,0.76420841,934.1,933.17,0.18631046]
[1768395682036,0.76420841,934.09,933.17,0.18631046]
[1768395682240,0.76420841,934.08,933.17,0.18631046]
[1768395682440,0.76420841,934.07,933.17,0.18631046]
[1768395682741,0.76420841,934.06,933.17,0.18631046]
[1768395682938,0.76420841,934.05,933.17,0.18631046]
[1768395683137,0.76420841,934.04,933.17,0.18631046]
[1768395683437,0.76420841,934.03,933.17,0.18631046]
[1768395683640,0.76420841,934.02,933.17,0.18631046]
[1768395683940,0.76420841,934.01,933.17,0.18631046]
[1768395684138,0.76420841,934.0,933.17,0.18631046]
[1768395684338,0.76420841,933.99,933.17,0.18631046]
[1768395684542,0.979,934.4,933.17,0.18631046]
[1768395684739,0.76242788,934.39,933.17,0.18631046]
[1768395684939,0.76242788,934.38,933.17,0.18631046]
[1768395685140,0.76242788,934.37,933.17,0.18631046]
[1768395685342,0.76242788,934.36,933.17,0.18631046]
[1768395685540,0.76242788,934.35,933.17,0.18631046]
[1768395685842,0.76242788,934.34,933.17,0.18631046]
[1768395686039,0.76242788,934.33,933.17,0.18631046]
[1768395686243,0.76242788,934.32,933.17,0.18631046]
[1768395686441,0.76242788,934.31,933.17,0.18631046]
[1768395686642,0.76242788,934.3,933.17,0.18631046]
[1768395686840,0.76242788,934.29,933.17,0.18631046]
[1768395687041,0.76242788,934.28,933.17,0.18631046]
[1768395687242,0.76242788,934.27,933.17,0.18631046]
[1768395687444,0.76242788,934.26,933.17,0.18631046]
[1768395687646,0.76242788,934.25,933.17,0.18631046]
[1768395687846,0.76242788,934.24,933.17,0.18631046]
[1768395688142,0.76220497,934.23,933.17,0.18631046]
[1768395688346,0.76220497,934.22,933.17,0.18631046]
[1768395688548,0.76220497,934.21,933.17,0.18631046]
[1768395688843,0.76220497,934.2,933.17,0.18631046]
[1768395689048,0.76220497,934.19,933.17,0.18631046]
[1768395689345,0.76220497,934.18,933.17,0.18631046]
[1768395689545,0.76220497,934.17,933.17,0.18631046]
[1768395689744,0.76220497,934.16,933.17,0.18631046]
[1768395689949,0.76220497,934.15,933.17,0.18631046]
[1768395690147,0.76220497,934.14,933.17,0.18631046]
[1768395690346,0.76220497,934.13,933.17,0.18631046]
[1768395690547,0.76220497,934.12,933.17,0.18631046]
[1768395690746,0.76220497,934.11,933.17,0.18631046]
[1768395690946,0.76220497,934.1,933.17,0.18631046]
[1768395691146,0.76220497,934.09,933.17,0.18631046]
[1768395691347,0.76220497,934.08,933.17,0.18631046]
[1768395691547,0.979,934.4,933.17,0.18631046]
[1768395691548,0.76220497,934.07,933.17,0.18631046]
[1768395691749,0.76220497,934.06,933.17,0.18631046]
[1768395691948,0.76220497,934.05,933.17,0.18631046]
[1768395692148,0.76220497,934.04,933.17,0.18631046]
[1768395692353,0.76220497,934.03,933.17,0.18631046]
[1768395692649,0.76220497,934.02,933.17,0.18631046]
[1768395692850,0.76220497,934.01,933.17,0.18631046]
[1768395693149,0.76220497,934.0,933.17,0.18631046]
[1768395693352,0.76220497,933.99,933.17,0.18631046]
[1768395693656,0.979,934.4,933.17,0.18631046]
[1768395693849,0.7622256,934.39,933.17,0.18631046]
[1768395694049,0.7622256,934.38,933.17,0.18631046]
[1768395694250,0.7622256,934.37,933.17,0.18631046]
[1768395694553,0.7622256,934.36,933.17,0.18631046]
[1768395694752,0.7622256,934.35,933.17,0.18631046]
[1768395694955,0.7622256,934.34,933.17,0.18631046]
[1768395695255,0.7622256,934.33,933.17,0.18631046]
[1768395695550,0.7622256,934.32,933.17,0.18631046]
[1768395695751,0.7622256,934.31,933.17,0.18631046]
[1768395695955,0.7622256,934.3,933.17,0.18631046]
[1768395696256,0.7622256,934.29,933.17,0.18631046]
[1768395696454,0.7622256,934.28,933.17,0.18631046]
[1768395696651,0.7622256,934.27,933.17,0.18631046]
[1768395696856,0.7622256,934.26,933.17,0.18631046]
[1768395697052,0.7622256,934.25,933.17,0.18631046]
[1768395697257,0.7622256,934.24,933.17,0.18631046]
[1768395697457,0.7622256,934.23,933.17,0.18631046]
[1768395697757,0.7622256,934.22,933.17,0.18631046]
[1768395697954,0.7622256,934.21,933.17,0.18631046]
[1768395698156,0.7622256,934.2,933.17,0.18631046]
[1768395698353,0.7622256,934.19,933.17,0.18631046]
[1768395698554,0.7622256,934.18,933.17,0.18631046]
[1768395698852,0.7622256,934.17,933.17,0.18631046]
[1768395699053,0.7622256,934.16,933.17,0.18631046]
[1768395699255,0.979,934.4,933.17,0.18631046]
[1768395699256,0.7622256,934.15,933.17,0.18631046]
[1768395699453,0.7622256,934.14,933.17,0.18631046]
[1768395699756,0.7622256,934.13,933.17,0.18631046]
[1768395699955,0.7622256,934.12,933.17,0.18631046]
[1768395700155,0.7622256,934.11,933.17,0.18631046]
[1768395700356,0.7622256,934.1,933.17,0.18631046]
[1768395700554,0.7622256,934.09,933.17,0.18631046]
[1768395700758,0.7622256,934.08,933.17,0.18631046]
[1768395700957,0.7622256,934.07,933.17,0.18631046]
[1768395701257,0.7622256,934.06,933.17,0.18631046]
[1768395701456,0.7622256,934.05,933.17,0.18631046]
[1768395701657,0.7622256,934.04,933.17,0.18631046]
[1768395701857,0.7622256,934.03,933.17,0.18631046]
[1768395702053,0.7622256,934.02,933.17,0.18631046]
[1768395702256,0.7622256,934.01,933.17,0.18631046]
[1768395702458,0.7622256,934.0,933.17,0.18631046]
[1768395702758,0.7622256,933.99,933.17,0.18631046]
[1768395703054,0.7622256,933.98,933.17,0.18631046]
[1768395703256,0.7622256,933.97,933.17,0.18631046]
[1768395703455,0.7622256,933.96,933.17,0.18631046]
[1768395703761,0.7622256,933.95,933.17,0.18631046]
[1768395703955,0.7622256,933.94,933.17,0.18631046]
[1768395704256,0.7622256,933.93,933.17,0.18631046]
[1768395704459,0.7622256,933.92,933.17,0.18631046]
[1768395704660,0.7622256,933.91,933.17,0.18631046]
[1768395704860,0.7622256,933.9,933.17,0.18631046]
[1768395705057,0.7622256,933.89,933.17,0.18631046]
[1768395705261,0.7622256,933.88,933.17,0.18631046]
[1768395705460,0.18619035,935.22,933.17,0.18631046]
[1768395705461,0.7622256,933.87,933.17,0.18631046]
[1768395705657,0.7622256,933.86,933.17,0.18631046]
[1768395705862,0.7622256,933.85,933.17,0.18631046]
[1768395706060,0.7622256,933.84,933.17,0.18631046]
[1768395706264,0.7622256,933.83,933.17,0.18631046]
[1768395706460,0.7622256,933.82,933.17,0.18631046]
[1768395706665,0.7622256,933.81,933.17,0.18631046]
[1768395706862,0.729,933.86,933.17,0.18631046]
[1768395707061,0.76518471,933.85,933.17,0.18631046]
[1768395707365,0.76518471,933.84,933.17,0.18631046]
[1768395707660,0.76518471,933.83,933.17,0.18631046]
[1768395707859,0.76518471,933.82,933.17,0.18631046]
[1768395708063,0.76518471,933.81,933.17,0.18631046]
[1768395708262,0.76518471,933.8,933.17,0.18631046]
[1768395708560,0.76518471,933.79,933.17,0.18631046]
[1768395708766,0.76518471,933.78,933.17,0.18631046]
[1768395709066,0.729,933.86,933.17,0.18631046]
[1768395709263,0.76571095,933.85,933.17,0.18631046]
[1768395709465,0.76571095,933.84,933.17,0.18631046]
[1768395709664,0.76571095,933.83,933.17,0.18631046]
[1768395709864,0.76571095,933.82,933.17,0.18631046]
[1768395710161,0.76571095,933.81,933.17,0.18631046]
[1768395710362,0.76571095,933.8,933.17,0.18631046]
[1768395710562,0.76571095,933.79,933.17,0.18631046]
[1768395710765,0.76571095,933.78,933.17,0.18631046]
[1768395710964,0.76571095,933.77,933.17,0.18631046]
[1768395711161,0.76571095,933.76,933.17,0.18631046]
[1768395711367,0.76654487,933.75,933.17,0.18631046]
[1768395711562,0.76654487,933.74,933.17,0.18631046]
[1768395711766,0.729,933.86,933.17,0.18631046]
[1768395711963,0.76654487,933.85,933.17,0.18631046]
[1768395712166,0.76654487,933.84,933.17,0.18631046]
[1768395712368,0.76654487,933.83,933.17,0.18631046]
[1768395712567,0.76654487,933.82,933.17,0.18631046]
[1768395712768,0.76654487,933.81,933.17,0.18631046]
[1768395712968,0.76654487,933.8,933.17,0.18631046]
[1768395713265,0.76654487,933.79,933.17,0.18631046]
[1768395713468,0.76654487,933.78,933.17,0.18631046]
[1768395713665,0.76654487,933.77,933.17,0.18631046]
[1768395713968,0.729,933.86,933.17,0.18631046]
[1768395714170,0.76683833,933.85,933.17,0.18631046]
[1768395714368,0.76683833,933.84,933.17,0.18631046]
[1768395714669,0.76683833,933.83,933.17,0.18631046]
[1768395714864,0.76683833,933.82,933.17,0.18631046]
[1768395715068,0.76683833,933.81,933.17,0.18631046]
[1768395715269,0.76683833,933.8,933.17,0.18631046]
[1768395715469,0.76683833,933.79,933.17,0.18631046]
[1768395715669,0.76683833,933.78,933.17,0.18631046]
[1768395715865,0.76683833,933.77,933.17,0.18631046]
[1768395716069,0.76683833,933.76,933.17,0.18631046]
[1768395716366,0.76683833,933.75,933.17,0.18631046]
[1768395716569,0.729,933.86,933.17,0.18631046]
[1768395716768,0.729,933.86,933.19,1.5990641]
[1768395717268,0.729,933.86,933.21,1.5990641]
[1768395717469,0.76762124,933.85,933.21,1.5990641]
[1768395717766,0.729,933.86,933.21,1.5990641]
[1768395717969,0.76762124,933.85,933.21,1.5990641]
[1768395718267,0.729,933.86,933.21,1.5990641]
[1768395718469,0.76761675,933.85,933.21,1.5990641]
[1768395718665,0.729,933.86,933.21,1.5990641]
[1768395718969,0.76761661,933.85,933.21,1.5990641]
[1768395719169,0.729,933.86,933.22,1.5990641]
[1768395719367,0.76761648,933.85,933.22,1.5990641]
[1768395719665,0.729,933.86,933.22,1.5990641]
[1768395719866,0.76761169,933.85,933.22,1.5990641]
[1768395720070,0.729,933.86,933.22,1.5990641]
[1768395720369,0.76761169,933.85,933.22,1.5990641]
[1768395720571,0.729,933.86,933.22,1.5990641]
[1768395720872,0.76766977,933.85,933.22,1.5990641]
[1768395721170,0.729,933.86,933.23,1.5990641]
[1768395721366,0.76766964,933.85,933.23,1.5990641]
[1768395721569,0.729,933.86,933.23,1.5990641]
[1768395721870,0.76766466,933.85,933.23,1.5990641]
[1768395722069,0.729,933.86,933.23,1.5990641]
[1768395722269,0.76766548,933.85,933.23,1.5990641]
[1768395722468,0.729,933.86,933.23,1.5990641]
[1768395722672,0.76766138,933.85,933.22,1.5990641]
[1768395722868,0.729,933.86,933.22,1.5990641]
[1768395723171,0.76766152,933.85,933.24,1.5990641]
[1768395723371,0.729,933.86,933.24,1.5990641]
[1768395725574,0.76746886,933.85,933.22,1.5990641]
[1768395725875,0.76746886,933.84,933.2,1.5990641]
[1768395726077,0.76746886,933.83,933.2,1.5990641]
[1768395726274,0.76751135,933.82,933.17,0.18631046]
[1768395726478,0.76751135,933.81,933.17,0.18631046]
[1768395726678,0.76751135,933.8,933.17,0.18631046]
[1768395726878,0.76751135,933.79,933.17,0.18631046]
[1768395727073,0.76751135,933.78,933.17,0.18631046]
[1768395727279,0.76751135,933.77,933.17,0.18631046]
[1768395727479,0.76751135,933.76,933.17,0.18631046]
[1768395727680,0.76751135,933.75,933.17,0.18631046]
[1768395727978,0.76751135,933.74,933.17,0.18631046]
[1768395728279,0.76751135,933.73,933.17,0.18631046]
[1768395728482,0.76751135,933.72,933.17,0.18631046]
[1768395728681,0.76751135,933.71,933.17,0.18631046]
[1768395728981,0.729,933.86,933.17,0.18631046]
[1768395729181,0.7675601,933.85,933.17,0.18631046]
[1768395729380,0.729,933.86,933.17,0.18631046]
[1768395729381,0.7675601,933.84,933.17,0.18631046]
[1768395729677,0.7675601,933.83,933.17,0.18631046]
[1768395729877,0.7675601,933.82,933.17,0.18631046]
[1768395730081,0.7675601,933.81,933.17,0.18631046]
[1768395730281,0.7675601,933.8,933.08,1.5990641]
[1768395730578,0.76658268,933.79,933.02,0.1863354]
[1768395730781,0.76658268,933.78,933.02,0.1863354]
[1768395730979,0.76658268,933.77,933.02,0.1863354]
[1768395731276,0.76658268,933.76,933.02,0.1863354]
[1768395731480,0.76658268,933.75,933.02,0.1863354]